bitfinex-derivatives/quotes_ETHF0:USTF0_20260203
["timestamp","ask_amount","ask_price","bid_price","bid_amount"]
[1770131962651,2.54570501,2267.2,2265.7,1.38846073]
[1770131962855,0.00450813,2267.2,2266.6,0.22078]
[1770131963045,0.00450813,2267.2,2266.2,1.38846073]
[1770131963247,38.30285507,2268.0,2267.0,0.22073]
[1770131963248,2.54570501,2268.0,2267.0,0.22073]
[1770131964050,55.54810675,2269.1,2267.9,1.5996458]
[1770131964254,2.54570501,2268.9,2268.0,0.22064]
[1770131964655,2.54570501,2268.7,2268.0,0.22064]
[1770131964854,2.54570501,2269.0,2267.9,0.00553863]
[1770131965060,2.54570501,2269.0,2268.4,0.2206]
[1770131965759,0.00472366,2269.1,2267.9,2.63378976]
[1770131965760,2.54570501,2268.9,2267.9,2.63378976]
[1770131965954,0.00472366,2269.1,2267.9,0.00103049]
[1770131965955,2.54570501,2268.5,2267.9,0.00103049]
[1770131966155,2.54570501,2268.5,2267.1,2.84897113]
[1770131966457,2.54570501,2268.4,2267.1,2.84897113]
[1770131966653,2.54570501,2268.3,2267.1,0.22072]
[1770131966852,2.54570501,2268.3,2267.2,1.61573691]
[1770131967054,2.54570501,2268.2,2267.2,0.22072]
[1770131967252,2.54570501,2268.2,2267.2,0.22581222]
[1770131967455,2.588,2268.6,2267.2,1.41450469]
[1770131967655,2.54570501,2268.5,2267.5,0.22068]
[1770131968056,2.54570501,2268.3,2267.5,0.22068]
[1770131968256,2.588,2268.6,2267.6,0.22067]
[1770131968460,5.13370501,2268.6,2267.6,0.22067]
[1770131968855,2.54570501,2268.3,2267.6,0.22067]
[1770131969753,6.95610501,2268.2,2267.6,0.22067]
[1770131970059,4.4104,2268.4,2267.6,0.22067]
[1770131970359,6.95610501,2268.4,2267.6,0.22067]
[1770131970560,2.54570501,2268.2,2267.2,0.00509222]
[1770131970756,2.588,2268.6,2267.2,0.00509222]
[1770131970757,2.54570501,2268.0,2267.2,0.00509222]
[1770131970958,2.54570501,2268.3,2267.4,0.22069]
[1770131971360,6.95610501,2268.1,2267.4,0.22069]
[1770131971560,2.54570501,2268.1,2267.4,0.22069]
[1770131971761,4.4104,2268.0,2267.4,0.22069]
[1770131972158,2.54570501,2268.1,2267.4,0.22069]
[1770131972561,2.54570501,2268.1,2267.5,0.22069]
[1770131972862,6.95610501,2268.1,2267.2,0.00509222]
[1770131973055,2.54570501,2268.0,2267.2,0.22581222]
[1770131975159,2.54570501,2268.0,2266.8,0.22076]
[1770131975359,2.54570501,2267.5,2266.8,0.22076]
[1770131975763,6.95610501,2267.4,2266.8,0.22076]
[1770131975957,2.54570501,2267.4,2266.8,0.22076]
[1770131976157,2.54570501,2267.2,2266.3,0.22081]
[1770131976368,2.55092909,2267.2,2266.3,0.00441249]
[1770131976567,2.55092909,2267.2,2266.6,0.22078]
[1770131976970,2.54570501,2267.9,2266.8,1.42219048]
[1770131977170,2.54570501,2267.9,2267.3,0.2207]
[1770131977467,6.46079501,2267.9,2267.3,0.2207]
[1770131977668,2.54570501,2267.9,2267.3,0.2207]
[1770131977870,2.54570501,2267.8,2267.3,0.2207]
[1770131978264,3.91509,2267.6,2267.3,0.2207]
[1770131978574,0.0051763,2267.8,2267.7,0.22067]
[1770131978772,0.22052,2269.3,2267.4,1.86060118]
[1770131978970,4.85852,2269.3,2267.4,1.86060118]
[1770131979165,3.46173,2268.9,2267.9,0.22065]
[1770131979370,3.46173,2269.0,2267.4,0.2207]
[1770131979571,3.46173,2268.9,2267.4,0.2207]
[1770131979767,3.46173,2268.6,2267.5,0.22069]
[1770131979973,3.46173,2268.6,2267.4,0.00567065]
[1770131980172,0.00358225,2268.9,2267.4,1.87557653]
[1770131980474,3.46173,2268.8,2267.4,1.87557653]
[1770131980973,2.54570501,2268.6,2267.4,1.87557653]
[1770131981174,2.54570501,2268.6,2267.8,0.22066]
[1770131981775,6.00743501,2268.4,2267.8,0.22066]
[1770131981963,2.54570501,2268.4,2267.8,0.22066]
[1770131982169,6.00743501,2268.3,2267.8,0.22066]
[1770131982368,2.54570501,2268.3,2267.8,0.22066]
[1770131982567,2.54928726,2268.9,2268.5,0.22059]
[1770131982867,2.587,2270.2,2268.2,5.25650226]
[1770131983066,0.22055,2268.9,2267.4,0.22637065]
[1770131983265,0.22066,2267.9,2266.4,0.22079]
[1770131983471,6.999,2267.8,2265.9,2.35060565]
[1770131983673,6.998,2267.7,2265.9,2.35060565]
[1770131983874,1.09318257,2267.6,2266.1,2.57142565]
[1770131984171,6.998,2267.7,2266.1,2.57142565]
[1770131984373,1.09318257,2267.4,2266.1,2.57612391]
[1770131984575,7.00368636,2267.7,2266.4,0.22079]
[1770131984776,2.54570501,2267.6,2266.4,2.57139565]
[1770131985072,2.54570501,2267.6,2266.6,0.22078]
[1770131985073,3.63888758,2267.6,2266.6,0.22078]
[1770131985274,2.54570501,2267.6,2266.6,0.22078]
[1770131985474,2.54570501,2267.4,2266.6,0.22078]
[1770131985773,3.63888758,2267.4,2266.6,0.22078]
[1770131985972,1.09318257,2267.2,2266.6,0.22078]
[1770131986473,1.09318257,2267.1,2266.6,0.22078]
[1770131986670,1.09318257,2267.2,2266.4,2.35060565]
[1770131986869,2.54570501,2267.2,2266.2,0.22081]
[1770131987471,2.54570501,2267.2,2266.2,2.57141565]
[1770131988071,7.00368636,2267.7,2266.2,2.57141565]
[1770131988072,3.63888758,2266.9,2266.2,0.22081]
[1770131988273,2.54570501,2266.9,2266.1,0.00469826]
[1770131988471,2.54570501,2266.1,2265.1,2.57152565]
[1770131988674,2.54570501,2266.1,2264.7,2.57156565]
[1770131988876,2.54570501,2266.1,2264.8,2.57155565]
[1770131989173,3.63888758,2266.1,2264.8,2.57155565]
[1770131989377,3.64322991,2266.1,2264.8,2.57652252]
[1770131989576,2.54570501,2266.0,2264.8,0.22591687]
[1770131989776,2.54570501,2265.9,2264.8,0.22591687]
[1770131990073,3.63888758,2265.8,2264.8,0.00496687]
[1770131990273,3.63888758,2265.9,2264.9,0.22094]
[1770131990776,1.09318257,2265.8,2264.9,0.22094]
[1770131990974,2.42006068,2265.7,2264.8,0.00496687]
[1770131991175,1.09318257,2265.5,2264.8,0.00496687]
[1770131991370,3.51324325,2265.3,2264.1,2.34575388]
[1770131991575,2.42006068,2265.2,2264.1,2.34575388]
[1770131992077,2.42006068,2265.7,2264.2,2.56676388]
[1770131992474,1.09318257,2265.5,2264.2,2.5700346]
[1770131992782,2.3694284,2265.8,2264.5,0.22098]
[1770131993077,2.3694284,2265.7,2264.5,0.22098]
[1770131993274,2.3694284,2265.2,2264.2,0.00327072]
[1770131993869,1.09318257,2265.1,2264.2,0.00327072]
[1770131994280,3.46261097,2265.1,2264.2,0.00327072]
[1770131994480,1.09318257,2264.7,2264.0,0.22103]
[1770131994676,2.3694284,2264.8,2264.0,0.22103]
[1770131994877,1.09318257,2264.7,2264.0,0.22103]
[1770131995176,2.3694284,2264.8,2263.7,0.22196456]
[1770131995177,1.09318257,2264.6,2263.7,0.22196456]
[1770131995377,3.46261097,2264.8,2263.7,0.22196456]
[1770131995579,1.09318257,2264.6,2263.7,0.22526914]
[1770131995778,2.3694284,2264.5,2263.1,2.35155215]
[1770131995979,2.3694284,2264.2,2263.1,2.35155215]
[1770131996373,1.09318257,2264.0,2263.1,2.35155215]
[1770131996874,7.185,2264.8,2263.5,2.57263215]
[1770131997075,7.185,2264.8,2263.7,2.57261215]
[1770131997469,8.27818257,2264.8,2263.7,2.57261215]
[1770131997880,2.3694284,2265.3,2264.1,2.35155215]
[1770131998078,2.3726009,2265.3,2264.0,0.22103]
[1770131998282,2.3726009,2265.3,2263.4,2.57264215]
[1770131998283,1.09318257,2264.7,2263.4,2.57264215]
[1770131998579,2.3694284,2264.7,2263.4,2.57264215]
[1770131998774,1.09318257,2264.5,2263.4,2.57264215]
[1770131999082,2.3694284,2264.7,2263.5,2.57263215]
[1770131999281,2.3694284,2264.7,2263.5,0.22108]
[1770131999585,1.09318257,2264.4,2263.5,0.22108]
[1770131999774,2.3694284,2264.7,2263.6,0.22107]
[1770131999973,2.3694284,2264.5,2263.6,0.22107]
[1770132000279,2.3694284,2264.5,2263.2,2.35155215]
[1770132000280,3.46261097,2264.5,2263.2,2.35155215]
[1770132000578,2.3694284,2263.9,2263.1,0.00452767]
[1770132000786,1.09318257,2263.4,2262.6,0.22116]
[1770132001078,2.3694284,2263.5,2262.3,2.57274215]
[1770132001279,2.3694284,2264.3,2262.8,0.22114]
[1770132001484,8.172,2264.5,2263.1,2.35155215]
[1770132001679,8.172,2264.5,2262.5,2.59]
[1770132001680,2.3694284,2265.3,2264.1,0.22102]
[1770132001878,4.416,2265.4,2264.4,2.35155215]
[1770132002082,2.3694284,2265.3,2264.1,2.35155215]
[1770132002284,4.417,2266.5,2265.1,2.35155215]
[1770132002479,6.7864284,2266.5,2265.4,2.35155215]
[1770132002681,6.7864284,2266.5,2265.1,0.22092]
[1770132002682,1.09318257,2266.3,2265.3,0.2209]
[1770132002883,2.3694284,2267.3,2266.2,0.22082]
[1770132003083,2.3694284,2267.7,2266.0,2.35155215]
[1770132003283,2.3694284,2267.7,2266.5,2.57233215]
[1770132003483,2.3694284,2267.7,2265.9,4.417]
[1770132003484,2.3694284,2267.7,2266.6,2.35155215]
[1770132003679,2.3694284,2268.2,2266.9,2.57230215]
[1770132003886,2.3734751,2268.2,2267.1,2.57227215]
[1770132004085,1.09722927,2268.2,2267.1,2.57227215]
[1770132004282,1.09318257,2267.1,2266.3,2.35155215]
[1770132004485,2.3694284,2267.4,2265.6,2.35155215]
[1770132004683,2.3694284,2266.7,2265.2,2.35155215]
[1770132004986,2.3694284,2267.1,2265.6,2.35155215]
[1770132005384,1.09318257,2267.0,2265.6,2.35691084]
[1770132005584,2.3694284,2266.7,2265.6,0.00535869]
[1770132005784,1.09318257,2266.6,2265.7,2.35155215]
[1770132005987,7.006,2267.5,2266.2,2.57236215]
[1770132005988,4.416,2267.5,2266.2,2.57236215]
[1770132006185,2.3694284,2267.8,2266.2,2.57236215]
[1770132006486,1.09318257,2267.2,2265.8,2.35155215]
[1770132006682,2.3694284,2267.2,2265.8,2.35155215]
[1770132006886,1.09318257,2267.0,2265.8,2.35155215]
[1770132007186,0.00546497,2267.2,2266.0,2.35155215]
[1770132007382,2.3694284,2267.9,2266.6,2.57232215]
[1770132007686,2.3694284,2267.5,2266.2,2.35155215]
[1770132007881,2.3694284,2267.5,2265.9,0.22084]
[1770132008084,1.09318257,2266.8,2265.8,2.35155215]
[1770132008279,2.3694284,2266.9,2265.6,0.00535869]
[1770132008478,1.09318257,2266.4,2265.6,0.00535869]
[1770132008680,2.81134954,2267.7,2265.6,0.00535869]
[1770132008681,2.3694284,2267.8,2266.5,2.57233215]
[1770132008985,2.3694284,2267.8,2266.1,2.35155215]
[1770132009189,2.3694284,2267.5,2266.1,2.35155215]
[1770132009383,2.98743097,2267.1,2265.7,2.35155215]
[1770132009584,2.3694284,2267.1,2265.7,2.35155215]
[1770132009787,2.37440752,2267.1,2265.7,2.35155215]
[1770132010081,0.61800257,2266.7,2265.7,2.35155215]
[1770132010288,0.00497912,2267.1,2265.7,2.57241215]
[1770132010481,0.00497912,2267.1,2265.6,0.00535869]
[1770132010482,0.00497912,2267.1,2266.0,2.35155215]
[1770132010687,2.3694284,2268.1,2266.5,2.35155215]
[1770132010884,2.3694284,2268.0,2266.5,2.57233215]
[1770132011183,2.3694284,2268.0,2266.6,2.35155215]
[1770132011184,0.61800257,2267.8,2266.6,2.35155215]
[1770132011389,2.3694284,2267.5,2266.2,2.57236215]
[1770132011689,2.98743097,2267.8,2266.2,2.57236215]
[1770132012079,2.3694284,2267.5,2266.2,2.35155215]
[1770132012284,2.3694284,2267.1,2266.0,4.415]
[1770132012481,2.98743097,2267.1,2266.0,6.76655215]
[1770132012781,2.3694284,2266.8,2265.6,2.35691084]
[1770132012987,2.98743097,2266.8,2265.6,2.35691084]
[1770132013186,0.61800257,2266.5,2265.6,2.35691084]
[1770132013380,8.58,2267.5,2265.8,2.35155215]
[1770132013590,2.98743097,2267.4,2265.8,2.35155215]
[1770132013786,0.61800257,2267.3,2266.1,2.35155215]
[1770132014089,2.98743097,2267.4,2266.1,2.57237215]
[1770132014287,0.61800257,2267.1,2266.1,2.57237215]
[1770132014484,0.61800257,2267.1,2266.2,0.22082]
[1770132014686,8.58,2267.5,2266.4,2.57234215]
[1770132014889,0.61800257,2267.3,2266.5,2.35155215]
[1770132015086,8.58,2267.5,2266.5,2.35155215]
[1770132015289,2.3694284,2268.2,2267.0,2.57228215]
[1770132015485,2.3694284,2268.2,2267.1,0.22073]
[1770132015783,2.47117097,2267.8,2266.6,2.35155215]
[1770132015988,2.47117097,2268.2,2266.8,2.57231215]
[1770132016185,2.3694284,2268.2,2267.2,0.22072]
[1770132016386,2.47117097,2268.2,2267.2,0.22072]
[1770132016590,0.10174257,2267.5,2266.7,2.57231215]
[1770132016890,0.10174257,2267.4,2266.3,2.57235215]
[1770132017088,2.3694284,2267.7,2266.4,2.57235215]
[1770132017285,2.3694284,2268.1,2266.8,2.35155215]
[1770132017487,2.3694284,2268.1,2266.9,2.57229215]
[1770132017792,2.3694284,2268.1,2267.1,2.57227215]
[1770132018088,0.10174257,2267.9,2267.1,2.57227215]
[1770132018290,0.10174257,2268.0,2267.1,2.57227215]
[1770132018689,0.10174257,2267.8,2267.1,2.57227215]
[1770132018990,0.10174257,2268.0,2267.1,2.35155215]
[1770132019191,2.3694284,2269.2,2268.0,0.22064]
[1770132019388,2.3694284,2269.2,2267.8,2.35155215]
[1770132019588,2.3694284,2269.2,2267.4,0.22069]
[1770132019589,2.3694284,2269.2,2267.5,2.57224215]
[1770132019790,2.3694284,2269.2,2267.6,0.22068]
[1770132019986,2.3694284,2269.2,2268.1,0.22063]
[1770132020184,2.3694284,2269.2,2268.1,2.57218215]
[1770132020390,2.3694284,2269.2,2268.1,0.22063]
[1770132020589,2.3694284,2269.2,2267.7,2.35155215]
[1770132020789,2.3694284,2269.2,2267.7,2.57222215]
[1770132021090,2.3694284,2269.2,2267.1,7.002]
[1770132021091,2.3694284,2269.2,2267.9,0.22065]
[1770132021787,2.3694284,2269.2,2268.0,2.57341521]
[1770132022394,2.3694284,2269.2,2268.0,0.22064]
[1770132023196,2.45101886,2269.9,2268.6,2.35277521]
[1770132023387,2.45101886,2269.9,2268.8,2.35277521]
[1770132023587,2.45101886,2269.9,2268.9,2.57332521]
[1770132023787,9.455,2270.0,2269.3,0.22051]
[1770132023992,4.413,2270.0,2269.3,2.57328521]
[1770132024187,2.45101886,2271.1,2269.8,0.22046]
[1770132024393,0.22196456,2271.2,2270.2,2.57319521]
[1770132024593,2.67298342,2271.2,2269.7,2.35277521]
[1770132024794,2.67298342,2271.2,2269.6,0.22048]
[1770132024990,2.89331342,2271.2,2269.6,2.35277521]
[1770132025991,2.67298342,2271.2,2269.7,0.22047]
[1770132026194,2.67298342,2271.2,2270.0,2.35277521]
[1770132026492,2.67298342,2271.2,2269.9,0.22046]
[1770132026698,2.67298342,2271.2,2269.6,2.35277521]
[1770132027193,0.22196456,2271.2,2270.2,2.35277521]
[1770132027694,2.45101886,2272.0,2270.6,2.35277521]
[1770132027892,2.45101886,2272.4,2270.6,2.35277521]
[1770132028092,2.45101886,2271.8,2269.8,2.35277521]
[1770132028300,2.45101886,2271.8,2268.9,2.81134954]
[1770132028301,2.45101886,2271.6,2270.0,2.35277521]
[1770132028498,2.45101886,2270.9,2269.3,2.35277521]
[1770132028693,2.45101886,2270.2,2268.5,2.35277521]
[1770132028898,2.67144886,2270.2,2268.5,2.35277521]
[1770132029197,2.67150886,2269.6,2268.1,2.35277521]
[1770132029394,2.67152886,2269.4,2267.7,2.35277521]
[1770132029598,2.67152886,2269.4,2267.9,2.35277521]
[1770132029599,2.45101886,2269.4,2267.9,2.35277521]
[1770132029791,6.996,2269.5,2267.9,2.35277521]
[1770132029994,9.44701886,2269.5,2267.9,2.35277521]
[1770132030293,2.45101886,2269.4,2268.1,2.35277521]
[1770132030790,2.45101886,2269.4,2268.0,0.22064]
[1770132030991,6.996,2269.5,2268.0,2.57341521]
[1770132031194,4.41,2269.5,2268.5,2.35277521]
[1770132031395,4.41,2269.5,2268.5,2.57335521]
[1770132031592,4.41,2269.5,2268.5,2.35277521]
[1770132031791,4.41,2269.5,2268.3,2.35277521]
[1770132031992,4.41,2269.5,2268.5,2.57336521]
[1770132032192,4.41,2269.5,2268.5,2.35277521]
[1770132032494,2.45101886,2269.4,2268.0,2.35277521]
[1770132033399,4.41,2269.5,2268.2,2.35277521]
[1770132033892,2.45101886,2269.4,2268.1,0.22063]
[1770132034397,2.45101886,2269.4,2268.1,2.57340521]
[1770132034698,4.41,2269.5,2268.2,2.57339521]
[1770132034899,4.41,2269.5,2268.3,2.57338521]
[1770132035095,4.41,2269.5,2268.5,2.35277521]
[1770132035400,2.45101886,2269.4,2267.9,2.57342521]
[1770132035598,2.45101886,2269.2,2267.9,2.57342521]
[1770132036294,2.45101886,2269.2,2267.5,2.35277521]
[1770132036798,2.45101886,2269.2,2268.0,2.57341521]
[1770132037000,2.843,2269.3,2268.1,2.57340521]
[1770132037900,2.843,2269.3,2268.4,2.57337521]
[1770132038101,2.843,2269.3,2268.4,0.2206]
[1770132038297,2.843,2269.3,2268.0,2.35277521]
[1770132038298,2.45101886,2269.2,2267.9,2.35277521]
[1770132038503,2.843,2269.3,2267.9,2.35277521]
[1770132038704,2.843,2269.3,2268.1,0.22062]
[1770132039004,4.41,2269.5,2268.6,2.57335521]
[1770132039306,4.41,2269.5,2268.8,2.35277521]
[1770132039702,4.41,2270.4,2269.3,0.22051]
[1770132039908,6.86101886,2270.4,2269.3,2.57328521]
[1770132040705,4.41,2270.4,2269.3,2.57328521]
[1770132041206,6.86101886,2270.4,2269.3,2.57328521]
[1770132041400,2.45101886,2270.9,2269.8,2.35277521]
[1770132041806,7.48401886,2271.3,2269.8,2.35277521]
[1770132042001,2.45101886,2271.2,2269.4,2.35277521]
[1770132042207,2.45101886,2271.2,2269.4,2.57327521]
[1770132042502,2.45101886,2271.0,2269.4,2.57327521]
[1770132043109,2.67137886,2271.0,2269.4,0.2205]
[1770132043302,2.45101886,2270.7,2269.0,2.35277521]
[1770132043503,2.45101886,2270.5,2269.0,2.35277521]
[1770132043810,2.45101886,2270.5,2267.8,7.81900348]
[1770132043811,2.45101886,2269.8,2268.1,0.22063]
[1770132044010,2.45101886,2269.3,2267.5,2.57346521]
[1770132044211,2.45101886,2269.1,2267.5,2.57346521]
[1770132044808,2.45101886,2268.9,2267.5,2.57346521]
[1770132045007,2.45101886,2268.9,2267.0,2.60596471]
[1770132045008,2.45101886,2268.7,2267.1,2.35277521]
[1770132045204,2.45101886,2268.7,2267.1,2.57350521]
[1770132045508,2.45101886,2268.7,2267.1,2.35277521]
[1770132045707,4.409,2268.8,2267.4,2.35277521]
[1770132046006,2.45101886,2268.7,2267.4,2.35277521]
[1770132046207,4.409,2268.8,2267.6,2.35277521]
[1770132046608,4.409,2268.8,2267.6,2.57345521]
[1770132047210,2.45101886,2268.7,2267.6,0.22068]
[1770132049010,2.45101886,2268.7,2267.2,2.57349521]
[1770132049611,0.0053818,2268.7,2267.6,2.35277521]
[1770132051013,2.48036727,2268.7,2267.6,2.35277521]
[1770132051513,2.48036727,2268.7,2267.5,0.22068]
[1770132051806,2.48036727,2268.7,2267.2,2.35591435]
[1770132052008,2.48036727,2268.7,2267.5,2.35055075]
[1770132052205,0.0053818,2268.7,2267.5,2.35055075]
[1770132052410,0.0053818,2268.7,2267.7,2.57122075]
[1770132052714,0.0053818,2268.7,2267.7,2.35055075]
[1770132052910,0.0053818,2268.7,2267.9,0.22064]
[1770132053508,0.0053818,2268.7,2268.1,2.31383311]
[1770132053715,2.42106485,2270.1,2269.2,0.22052]
[1770132053914,4.41,2270.7,2269.6,0.22048]
[1770132054212,4.41,2270.7,2269.8,2.53429311]
[1770132054408,2.42106485,2270.6,2269.4,2.31383311]
[1770132054614,2.42534203,2270.6,2269.4,0.00532563]
[1770132054908,2.64573203,2270.6,2269.4,0.00532563]
[1770132055109,2.42534203,2270.6,2269.4,2.53965874]
[1770132055308,0.00427718,2270.6,2269.7,2.31383311]
[1770132055511,0.00427718,2270.6,2269.7,2.53430311]
[1770132055706,0.00427718,2270.6,2269.7,2.31383311]
[1770132055910,0.00427718,2270.6,2269.4,2.53965874]
[1770132056511,0.00427718,2270.6,2269.7,2.53430311]
[1770132056711,0.00427718,2270.6,2269.9,2.53428311]
[1770132056908,4.41,2271.6,2270.6,2.31383311]
[1770132057316,4.41,2271.6,2269.9,3.87639898]
[1770132057317,6.83106485,2271.6,2269.9,2.31383311]
[1770132057516,6.83106485,2271.6,2270.2,2.31383311]
[1770132057817,2.42106485,2271.5,2270.2,2.31383311]
[1770132058217,2.64136485,2271.5,2269.6,2.31383311]
[1770132058418,2.42106485,2271.3,2269.6,2.31383311]
[1770132058717,2.42106485,2271.1,2269.6,2.31383311]
[1770132059218,2.42106485,2271.1,2269.4,2.59132563]
[1770132059219,2.64142485,2270.9,2269.4,2.31915874]
[1770132059616,2.64142485,2270.9,2269.4,0.00532563]
[1770132059820,2.64142485,2270.9,2269.4,2.31915874]
[1770132060614,2.54444143,2271.6,2269.8,2.31383311]
[1770132060819,2.42106485,2271.5,2270.3,2.53425311]
[1770132061021,0.00522512,2271.6,2270.6,2.53421311]
[1770132061221,2.42106485,2272.3,2271.0,0.22035]
[1770132061522,2.42106485,2272.0,2270.5,2.53422311]
[1770132061718,2.42106485,2272.0,2269.9,2.60596471]
[1770132061719,2.64132485,2272.0,2269.9,0.22045]
[1770132061919,2.42106485,2272.0,2270.6,2.31383311]
[1770132062120,2.42106485,2272.7,2271.1,2.31383311]
[1770132062424,2.42106485,2272.7,2271.0,2.31383311]
[1770132062722,2.42106485,2271.7,2270.6,0.0033859]
[1770132063023,6.82906485,2271.9,2270.6,2.31383311]
[1770132063218,5.024,2272.4,2271.2,2.31383311]
[1770132063419,5.024,2272.4,2271.2,2.53415311]
[1770132063921,5.02922915,2272.4,2271.2,2.53988265]
[1770132064218,7.450294,2272.4,2271.2,2.53988265]
[1770132064423,2.42106485,2272.3,2271.2,0.00572954]
[1770132064618,2.64129485,2272.3,2270.6,0.22039]
[1770132065016,2.42106485,2272.3,2270.7,2.31383311]
[1770132065322,2.42106485,2272.3,2271.1,2.31383311]
[1770132065518,2.42106485,2272.3,2271.1,0.00465587]
[1770132065720,2.64128485,2272.3,2271.1,0.00465587]
[1770132066319,2.42106485,2272.3,2271.1,0.00465587]
[1770132066918,2.64128485,2272.3,2271.1,0.00465587]
[1770132067123,2.42106485,2271.9,2270.2,0.22042]
[1770132067322,2.42106485,2271.7,2270.2,0.22042]
[1770132067628,2.42106485,2272.1,2270.9,0.22036]
[1770132067824,2.42106485,2272.1,2271.0,2.31383311]
[1770132068219,2.42106485,2272.1,2271.0,2.31783517]
[1770132069023,2.42106485,2272.1,2271.0,0.00400206]
[1770132069224,2.42106485,2271.9,2271.0,0.00400206]
[1770132069423,2.42106485,2271.9,2270.4,0.22041]
[1770132069628,41.02026,2272.0,2270.0,4.407]
[1770132069629,2.42106485,2271.6,2270.0,4.407]
[1770132069827,2.42106485,2271.4,2270.1,2.31383311]
[1770132070130,4.406,2271.5,2270.2,2.31383311]
[1770132070329,4.406,2271.5,2270.7,2.53420311]
[1770132070529,4.406,2271.5,2270.7,2.5382666]
[1770132071026,43.22106485,2272.2,2270.9,2.53419311]
[1770132071326,2.42106485,2272.1,2270.9,2.53419311]
[1770132071724,2.42106485,2272.1,2270.9,0.22036]
[1770132072429,2.42106485,2272.2,2271.0,2.31383311]
[1770132072630,2.42106485,2272.2,2271.1,0.22034]
[1770132072822,0.00522915,2272.4,2271.4,0.22031]
[1770132073226,2.426294,2272.4,2271.4,0.22031]
[1770132073425,2.426294,2272.4,2270.9,2.53419311]
[1770132073625,2.426294,2272.4,2270.9,2.31383311]
[1770132074024,2.426294,2272.4,2271.1,0.22034]
[1770132074827,2.646504,2272.4,2270.7,0.00406349]
[1770132075033,2.646504,2272.4,2270.7,2.3178966]
[1770132075434,2.646504,2272.4,2270.8,2.53419311]
[1770132075934,2.64131485,2272.1,2270.7,0.00406349]
[1770132076934,2.64131485,2272.1,2270.7,2.3178966]
[1770132077133,2.64131485,2272.1,2270.7,2.5382766]
[1770132077532,2.64131485,2272.1,2270.8,2.53420311]
[1770132078532,2.42106485,2271.4,2269.8,6.71883311]
[1770132078733,0.22034,2271.1,2269.5,0.22049]
[1770132078934,2.42106485,2271.0,2269.5,0.22049]
[1770132079238,48.25206485,2271.3,2270.3,0.22042]
[1770132079430,5.031,2271.3,2270.5,0.2204]
[1770132079641,5.031,2271.3,2270.7,0.22037]
[1770132079836,4.405,2271.4,2270.6,2.31383311]
[1770132080041,6.82606485,2271.4,2270.5,0.00487586]
[1770132080446,4.405,2271.4,2270.5,0.00487586]
[1770132080646,6.83373164,2271.4,2270.5,0.00487586]
[1770132080842,2.42873164,2271.3,2270.5,0.00487586]
[1770132081044,2.42873164,2271.3,2270.0,2.55929629]
[1770132081640,2.64905164,2271.3,2269.7,0.22048]
[1770132081841,2.64905164,2271.3,2269.7,2.55933629]
[1770132082041,2.42873164,2271.7,2270.6,2.33885629]
[1770132082243,2.42873164,2272.2,2270.9,2.33885629]
[1770132082648,2.42873164,2272.1,2270.9,2.33885629]
[1770132083652,2.42873164,2272.3,2270.9,2.33885629]
[1770132083953,2.64896164,2272.3,2270.9,2.33885629]
[1770132084252,2.42873164,2272.2,2270.9,2.55921629]
[1770132084550,2.42873164,2272.2,2271.1,2.55919629]
[1770132084943,2.42873164,2272.2,2271.1,0.22034]
[1770132085352,2.42873164,2272.2,2271.1,2.55919629]
[1770132086352,2.42873164,2272.2,2271.1,0.22034]
[1770132086552,2.42873164,2272.2,2271.1,2.55919629]
[1770132087354,0.00522915,2272.4,2271.4,2.33885629]
[1770132087553,0.00522915,2272.4,2271.4,2.34195337]
[1770132087754,0.00522915,2272.4,2271.8,0.22026]
[1770132087949,5.035,2272.6,2271.8,0.22026]
[1770132088155,5.035,2272.6,2271.8,2.55911629]
[1770132088352,4.405,2272.7,2272.0,2.55910629]
[1770132088750,3.20840668,2272.7,2272.1,0.22024]
[1770132088953,2.42873164,2272.6,2271.4,0.00309708]
[1770132089157,7.47873164,2272.5,2271.4,2.34195337]
[1770132089557,7.47873164,2272.5,2271.5,0.2203]
[1770132089855,2.42873164,2272.4,2271.4,0.00309708]
[1770132090257,4.96794795,2272.4,2271.4,0.00309708]
[1770132090556,2.42873164,2272.3,2271.4,0.00309708]
[1770132091157,2.53921631,2272.4,2271.2,0.22032]
[1770132091359,0.00310165,2272.7,2271.7,2.55913629]
[1770132092258,2.43183329,2272.7,2271.8,0.22027]
[1770132092455,0.00310165,2272.7,2271.9,2.55911629]
[1770132093261,0.00310165,2272.7,2272.1,2.33885629]
[1770132093462,6.83273164,2273.4,2272.4,2.55906629]
[1770132093959,6.83273164,2273.4,2272.0,2.60596471]
[1770132093960,4.404,2273.4,2272.5,0.2202]
[1770132094162,4.404,2273.4,2272.2,4.944821]
[1770132094163,2.42873164,2273.9,2272.7,2.33885629]
[1770132094366,5.06e-06,2273.9,2273.3,2.33885629]
[1770132094561,4.404,2274.4,2273.6,0.22009]
[1770132094764,2.42873164,2274.9,2273.8,2.55893629]
[1770132095160,5.054,2275.0,2273.9,0.22007]
[1770132095363,4.404,2275.2,2274.0,2.55891629]
[1770132095662,2.42873164,2275.1,2274.0,0.003278]
[1770132095863,2.42873164,2275.1,2274.0,2.34213429]
[1770132096269,2.42873164,2275.1,2274.0,0.003278]
[1770132096961,0.00508642,2275.2,2274.4,0.22001]
[1770132097162,0.22196456,2276.2,2274.5,2.33885629]
[1770132097364,0.22196456,2276.2,2275.3,2.33885629]
[1770132097566,0.22196456,2276.2,2275.3,2.55878629]
[1770132097762,5.26875,2277.2,2275.6,2.33885629]
[1770132097763,2.42873164,2277.1,2275.6,2.33885629]
[1770132097967,2.42873164,2277.3,2276.1,2.33885629]
[1770132098265,2.42873164,2277.0,2275.6,2.33885629]
[1770132098564,0.21981,2276.6,2275.0,2.33885629]
[1770132098769,2.42873164,2276.4,2275.0,2.33885629]
[1770132099168,2.42873164,2276.4,2274.7,2.33885629]
[1770132099369,2.42873164,2276.4,2274.7,2.34423379]
[1770132099766,2.64861164,2275.9,2274.7,0.0053775]
[1770132099970,2.42873164,2275.7,2274.2,2.33885629]
[1770132100164,2.42873164,2275.5,2274.2,2.33885629]
[1770132101167,2.42873164,2275.3,2274.2,1e-08]
[1770132101669,0.00494326,2275.5,2274.2,2.3388563]
[1770132101870,0.00494326,2275.5,2274.6,2.33885629]
[1770132102070,2.42873164,2276.7,2275.3,2.33885629]
[1770132102567,2.42873164,2276.7,2275.4,2.33885629]
[1770132103169,2.43262529,2276.7,2275.4,2.33885629]
[1770132103371,2.43262529,2276.7,2275.0,2.33885629]
[1770132103672,2.43262529,2276.7,2275.0,2.55881629]
[1770132103869,2.43262529,2276.7,2275.0,2.33885629]
[1770132104075,2.42873164,2276.5,2274.6,2.33885629]
[1770132104269,2.42873164,2276.3,2274.6,2.55885629]